Department Family,Entity,Date,Expenses Type,Expense Area,Supplier,Transaction Number,  Total  
Department of Health,The Christie NHS Foundation Trust,04/11/2021,Lab Equipment Systems,Clin Support & Spec Surgery,CONTRONICS LTD,678120,"25,261.00"
Department of Health,The Christie NHS Foundation Trust,25/11/2021,Medical Equipment,Clin Support & Spec Surgery,RAND S.p.A,681214,"27,704.44"
Department of Health,The Christie NHS Foundation Trust,04/11/2021,Software Support ,Clin Support & Spec Surgery,TRISOFT LTD,679491,"37,730.00"
Department of Health,The Christie NHS Foundation Trust,25/11/2021,Drugs,Drugs,ALCURA UK LIMITED,681330,"65,500.16"
Department of Health,The Christie NHS Foundation Trust,04/11/2021,Drugs,Drugs,BAXTER HEALTHCARE LTD,677912,"154,759.99"
Department of Health,The Christie NHS Foundation Trust,25/11/2021,Drugs,Drugs,BAXTER HEALTHCARE LTD,678572,"90,184.21"
Department of Health,The Christie NHS Foundation Trust,25/11/2021,Drugs,Drugs,BAXTER HEALTHCARE LTD,678990,"105,785.78"
Department of Health,The Christie NHS Foundation Trust,25/11/2021,Drugs,Drugs,BAXTER HEALTHCARE LTD,678991,"80,959.03"
Department of Health,The Christie NHS Foundation Trust,25/11/2021,Drugs,Drugs,BAXTER HEALTHCARE LTD,678999,"54,621.78"
Department of Health,The Christie NHS Foundation Trust,25/11/2021,Drugs,Drugs,BAXTER HEALTHCARE LTD,679000,"115,226.59"
Department of Health,The Christie NHS Foundation Trust,25/11/2021,Drugs,Drugs,BAXTER HEALTHCARE LTD,679157,"60,868.33"
Department of Health,The Christie NHS Foundation Trust,25/11/2021,Drugs,Drugs,BAXTER HEALTHCARE LTD,679668,"75,805.56"
Department of Health,The Christie NHS Foundation Trust,25/11/2021,Drugs,Drugs,BAXTER HEALTHCARE LTD,679674,"83,590.78"
Department of Health,The Christie NHS Foundation Trust,25/11/2021,Drugs,Drugs,BAXTER HEALTHCARE LTD,679691,"81,370.43"
Department of Health,The Christie NHS Foundation Trust,25/11/2021,Drugs,Drugs,BAXTER HEALTHCARE LTD,677926,"79,885.16"
Department of Health,The Christie NHS Foundation Trust,25/11/2021,Drugs,Drugs,BAXTER HEALTHCARE LTD,678043,"55,214.60"
Department of Health,The Christie NHS Foundation Trust,04/11/2021,Drugs,Drugs,BAXTER HEALTHCARE LTD,679721,"358,148.40"
Department of Health,The Christie NHS Foundation Trust,25/11/2021,Drugs,Drugs,BAXTER HEALTHCARE LTD,678432,"90,570.72"
Department of Health,The Christie NHS Foundation Trust,25/11/2021,Drugs,Drugs,BAXTER HEALTHCARE LTD,678437,"78,965.36"
Department of Health,The Christie NHS Foundation Trust,25/11/2021,Drugs,Drugs,BAXTER HEALTHCARE LTD,678438,"68,257.62"
Department of Health,The Christie NHS Foundation Trust,25/11/2021,Drugs,Drugs,BAXTER HEALTHCARE LTD,678446,"90,869.06"
Department of Health,The Christie NHS Foundation Trust,04/11/2021,Drugs,Drugs,HEALTHCARE AT HOME LTD,679077,"52,050.00"
Department of Health,The Christie NHS Foundation Trust,18/11/2021,Drugs,Drugs,HEALTHCARE AT HOME LTD,680896,"45,511.00"
Department of Health,The Christie NHS Foundation Trust,25/11/2021,Drugs,Drugs,HEALTHCARE AT HOME LTD,680898,"26,015.00"
Department of Health,The Christie NHS Foundation Trust,18/11/2021,Drugs,Drugs,LLOYDSPHARMACY CLINICAL HOMECARE,680735,"35,693.65"
Department of Health,The Christie NHS Foundation Trust,18/11/2021,Drugs,Drugs,TAMESIDE AND GLOSSOP INTEGRATED CARE NHS,676208,"89,011.25"
Department of Health,The Christie NHS Foundation Trust,11/11/2021,Drugs,Drugs,THE CHRISTIE CLINIC (HCA),677416,"33,675.00"
Department of Health,The Christie NHS Foundation Trust,25/11/2021,Drugs,Drugs,THE CHRISTIE CLINIC (HCA),679850,"37,080.00"
Department of Health,The Christie NHS Foundation Trust,15/11/2021,Blood Products,Network Services,DD NHS BLOOD AND TRANSPLANT,678270,"160,265.00"
Department of Health,The Christie NHS Foundation Trust,18/11/2021,Q2 Paediatric Anaesthetic Service,Network Services,MANCHESTER UNIVERSITY NHS FT,679562,"84,999.00"
Department of Health,The Christie NHS Foundation Trust,18/11/2021,Q2 Paediatric Anaesthetic Service,Network Services,MANCHESTER UNIVERSITY NHS FT,679563,"82,464.00"
Department of Health,The Christie NHS Foundation Trust,18/11/2021,Q2 Paediatric Anaesthetic Consultant Input,Network Services,MANCHESTER UNIVERSITY NHS FT,679564,"44,205.32"
Department of Health,The Christie NHS Foundation Trust,18/11/2021,Q2 Paediatric Anaesthetic Consultant Input,Network Services,MANCHESTER UNIVERSITY NHS FT,679581,"44,205.32"
Department of Health,The Christie NHS Foundation Trust,18/11/2021,Q2 Paediatric Anaesthetic Consultant Input,Network Services,MANCHESTER UNIVERSITY NHS FT,679565,"44,205.33"
Department of Health,The Christie NHS Foundation Trust,18/11/2021,Q1 Paediatric Anaesthetic Service,Network Services,MANCHESTER UNIVERSITY NHS FT,679566,"84,999.00"
Department of Health,The Christie NHS Foundation Trust,11/11/2021,Provision Charge - October 2021,Network Services,MID CHESHIRE HOSPITALS NHS FT,677559,"52,893.00"
Department of Health,The Christie NHS Foundation Trust,25/11/2021,Provision Charge - November 2021,Network Services,MID CHESHIRE HOSPITALS NHS FT,679842,"52,893.00"
Department of Health,The Christie NHS Foundation Trust,11/11/2021,Blood Products,Network Services,NHS BLOOD AND TRANSPLANT,678342,"28,346.66"
Department of Health,The Christie NHS Foundation Trust,04/11/2021,Blood Products,Network Services,NHS BLOOD AND TRANSPLANT,677989,"37,817.55"
Department of Health,The Christie NHS Foundation Trust,04/11/2021,Patients Accomodation,Network Services,STAYCITY MANCHESTER LTD,679159,"88,836.03"
Department of Health,The Christie NHS Foundation Trust,18/11/2021,Month 7 Chemotherapy SLA Invoice,Network Services,STOCKPORT NHS FOUNDATION TRUST,679305,"30,717.00"
Department of Health,The Christie NHS Foundation Trust,25/11/2021,Haematology Service Transfer - August 2021,Network Services,TAMESIDE AND GLOSSOP INTEGRATED CARE NHS,676261,"53,814.00"
Department of Health,The Christie NHS Foundation Trust,25/11/2021,Haematology Service Transfer - September 2021,Network Services,TAMESIDE AND GLOSSOP INTEGRATED CARE NHS,676263,"53,814.00"
Department of Health,The Christie NHS Foundation Trust,25/11/2021,Haematology Service Transfer - October 2021,Network Services,TAMESIDE AND GLOSSOP INTEGRATED CARE NHS,679636,"53,814.00"
Department of Health,The Christie NHS Foundation Trust,18/11/2021,Blood Products,Network Services,THE ANTHONY NOLAN BONE MARROW,678928,"25,350.00"
Department of Health,The Christie NHS Foundation Trust,18/11/2021,Service Contract,Network Services,VARIAN MEDICAL SYSTEMS UK LTD,678865,"146,500.00"
Department of Health,The Christie NHS Foundation Trust,18/11/2021,Service Contract,Network Services,VARIAN MEDICAL SYSTEMS UK LTD,678866,"226,500.00"
Department of Health,The Christie NHS Foundation Trust,11/11/2021,Clinical Activity Charge - October 2021,Network Services,WRIGHTINGTON WIGAN AND LEIGH NHS FT,679203,"277,691.07"
Department of Health,The Christie NHS Foundation Trust,25/11/2021,Clinical Activity Charge - November 2021,Network Services,WRIGHTINGTON WIGAN AND LEIGH NHS FT,680163,"277,691.07"
Department of Health,The Christie NHS Foundation Trust,18/11/2021,Facilities Management Services - August 2021,Christie Pathology Partner,CPP FACILITIES LLP,677096,"230,871.76"
Department of Health,The Christie NHS Foundation Trust,04/11/2021,Facilities Management Services - November 2021,Christie Pathology Partner,CPP FACILITIES LLP,678264,"180,459.88"
Department of Health,The Christie NHS Foundation Trust,11/11/2021,Facilities Management Services - September 2021,Christie Pathology Partner,CPP FACILITIES LLP,679007,"235,556.14"
Department of Health,The Christie NHS Foundation Trust,18/11/2021,Pathology Testing Services - September 2021,Christie Pathology Partner,THE CHRISTIE PATHOLOGY PARTNERSHIP LLP,679001,"495,660.76"
Department of Health,The Christie NHS Foundation Trust,04/11/2021,Pathology Testing Services - November 2021,Christie Pathology Partner,THE CHRISTIE PATHOLOGY PARTNERSHIP LLP,678168,"379,726.40"
Department of Health,The Christie NHS Foundation Trust,04/11/2021,MFT Cellmarker Testing for CFT Recharge,Christie Pathology Partner,THE CHRISTIE PATHOLOGY PARTNERSHIP LLP,678261,"36,000.00"
Department of Health,The Christie NHS Foundation Trust,15/11/2021,"CNST,LTPS & PES - November 2021",Quality & Standards,DD  NHS RESOLUTION,680693,"177,439.90"
Department of Health,The Christie NHS Foundation Trust,04/11/2021,Insurance ,Finance & Business Developm,GRIFFITHS & ARMOUR,679681,"365,216.70"
Department of Health,The Christie NHS Foundation Trust,25/11/2021,Renewal Software Fee,School of Oncology,ELSEVIER SCIENCE B.V.,680943,"31,439.00"
Department of Health,The Christie NHS Foundation Trust,04/11/2021,Professional Services Fee,Estates & Facilities,AVISON YOUNG (GVA),679425,"21,600.00"
Department of Health,The Christie NHS Foundation Trust,09/11/2021,Rates,Estates & Facilities,DD M/CR CITY COUNCIL (RATES),680409,"75,629.00"
Department of Health,The Christie NHS Foundation Trust,04/11/2021,Salford Fixed SLA - Rental of Building - October 2021,Estates & Facilities,NORTHERN CARE ALLIANCE NHS FT,678794,"25,974.41"
Department of Health,The Christie NHS Foundation Trust,25/11/2021,Salford Fixed SLA - Rental of Building - November 2021,Estates & Facilities,NORTHERN CARE ALLIANCE NHS FT,680670,"25,974.41"
Department of Health,The Christie NHS Foundation Trust,25/11/2021, Energy Centre - Asbestos Works,Estates & Facilities,NORTHERN INSULATION CONTRACTORS LLP,680224,"42,198.00"
Department of Health,The Christie NHS Foundation Trust,25/11/2021,Subscriptions Package,Human Resources,SOFTCAT PLC,677881,"45,738.00"
Department of Health,The Christie NHS Foundation Trust,25/11/2021,Patients Accomodation,Other Income Levies and Gra,THE CHRISTIE CLINIC (HCA),679849,"129,889.00"
Department of Health,The Christie NHS Foundation Trust,11/11/2021,PET-CT Recharge - September 2021,Christie Medical Physics,ALLIANCE MEDICAL LTD,678736,"80,550.00"
Department of Health,The Christie NHS Foundation Trust,04/11/2021,Clinical Trials Expenditure,Research & Innovation,UNIVERSITY OF LIVERPOOL,677730,"128,025.81"
Department of Health,The Christie NHS Foundation Trust,11/11/2021,Consultancy Days - September 2021,Capital,AIRE LOGIC LIMITED,677728,"68,720.00"
Department of Health,The Christie NHS Foundation Trust,11/11/2021,Project Management Fee,Capital,ARCADIS LLP,678511,"58,160.04"
Department of Health,The Christie NHS Foundation Trust,11/11/2021,Computer Equipment,Capital,CCS MEDIA LIMITED,675631,"29,026.80"
Department of Health,The Christie NHS Foundation Trust,25/11/2021,Construction Project,Capital,ELECTRICITY NORTH WEST,679832,"41,396.93"
Department of Health,The Christie NHS Foundation Trust,11/11/2021,Digital Workplace Servers Installation,Capital,INSIGHT DIRECT (UK) LTD,678543,"280,070.75"
Department of Health,The Christie NHS Foundation Trust,04/11/2021,Data Centre Colocation Project,Capital,INSIGHT DIRECT (UK) LTD,674600,"165,511.20"
Department of Health,The Christie NHS Foundation Trust,04/11/2021,Paterson Redevelopment Project Works,Capital,INTEGRATED HEALTH PROJECTS,679538,"5,428,185.92"
Department of Health,The Christie NHS Foundation Trust,18/11/2021,Medical Equipment,Capital,NHS SUPPLY CHAIN,679545,"68,998.09"
Department of Health,The Christie NHS Foundation Trust,04/11/2021,Medical Equipment,Capital,ONCOLOGY IMAGING SYSTEMS LTD,677499,"36,893.00"
Department of Health,The Christie NHS Foundation Trust,04/11/2021,Medical Equipment,Capital,ONCOLOGY IMAGING SYSTEMS LTD,678412,"28,418.00"
Department of Health,The Christie NHS Foundation Trust,04/11/2021,Medical Equipment,Capital,ONCOLOGY IMAGING SYSTEMS LTD,677500,"45,113.00"
Department of Health,The Christie NHS Foundation Trust,04/11/2021,Medical Equipment,Capital,ONCOLOGY IMAGING SYSTEMS LTD,677501,"32,018.00"
Department of Health,The Christie NHS Foundation Trust,11/11/2021,Car Park Construction,Capital,VINCI CONSTRUCTION UK LIMITED,680064,"1,073,001.00"
Department of Health,The Christie NHS Foundation Trust,18/11/2021,Christie Macclesfield Construction Works,Capital,VINCI CONSTRUCTION UK LIMITED,680826,"700,248.00"
Department of Health,The Christie NHS Foundation Trust,04/11/2021,Energy Bill,Capital,VITAL ENERGI SOLUTIONS LTD,678265,"891,694.25"
Department of Health,The Christie NHS Foundation Trust,11/11/2021,MFT RDC Services - Q1 & Q2 2021/22,Manchester Cancer,MANCHESTER UNIVERSITY NHS FT,678829,"698,092.00"
Department of Health,The Christie NHS Foundation Trust,25/11/2021,Medical Services,Manchester Cancer,VIADUCT CARE CIC,680973,"59,000.00"
Department of Health,The Christie NHS Foundation Trust,18/11/2021,Computer Equipment,Digital Services,IDEAGEN SOFTWARE LIMITED,678819,"39,545.23"
Department of Health,The Christie NHS Foundation Trust,04/11/2021,System Support Subscription - November 2021,Digital Services,SYSTEM C HEALTHCARE,677846,"23,362.71"
Department of Health,The Christie NHS Foundation Trust,11/11/2021,Network Services,Digital Services,VIRGIN MEDIA BUSINESS,677562,"48,636.92"
Department of Health,The Christie NHS Foundation Trust,25/11/2021,Clinical Trials Expenditure,Digital Services,VIRGIN MEDIA BUSINESS,680000,"93,127.68"
Department of Health,The Christie NHS Foundation Trust,04/11/2021,Computer Equipment,Digital Services,XMA LTD,678070,"43,500.00"
Department of Health,The Christie NHS Foundation Trust,11/11/2021,All Wards & Departments,The Christie NHS FT Balance,NHS SUPPLY CHAIN,679718,"74,612.42"
Department of Health,The Christie NHS Foundation Trust,04/11/2021,All Wards & Departments,The Christie NHS FT Balance,NHS SUPPLY CHAIN,679714,"66,871.68"
